bitfinex/quotes_ETHUSD_20260203
["timestamp","ask_amount","ask_price","bid_price","bid_amount"]
[1770123530685,0.0011,2305.8,2305.5,0.001]
[1770123534592,12.74611385,2305.8,2305.5,0.001]
[1770123537593,0.0011,2305.8,2305.5,0.001]
[1770123540785,0.0011,2305.8,2305.5,1.29931732]
[1770123540985,0.0011,2305.8,2305.5,13.19606253]
[1770123541296,13.78347922,2306.2,2305.5,1.29931732]
[1770123541614,13.78347922,2306.2,2305.0,0.001]
[1770123541615,6.03267375,2305.6,2305.0,0.001]
[1770123541896,6.03267375,2305.6,2304.3,0.001]
[1770123541897,12.74501385,2305.2,2304.3,0.001]
[1770123542092,12.74501385,2305.0,2304.3,0.001]
[1770123542293,12.74501385,2305.0,2304.3,1.84949899]
[1770123542691,13.82956549,2305.1,2304.3,1.84949899]
[1770123543496,13.82956549,2305.1,2304.3,0.001]
[1770123544071,14.73856549,2305.1,2304.3,0.001]
[1770123545499,14.73856549,2305.1,2305.0,0.001]
[1770123545823,14.73856549,2305.1,2304.3,0.001]
[1770123546623,10.37088033,2305.2,2304.3,0.001]
[1770123546624,1.56308479,2305.8,2304.9,11.62407041]
[1770123546822,1.08532764,2305.8,2305.0,9.31193448]
[1770123547012,13.83034149,2305.8,2305.0,9.31193448]
[1770123547210,12.74611385,2305.8,2305.0,2.37026073]
[1770123547391,0.01318942,2305.7,2304.8,0.909]
[1770123548391,0.01318942,2305.7,2304.9,1.08464575]
[1770123549939,12.75820327,2305.7,2304.9,1.08464575]
[1770123551317,0.01318942,2305.6,2304.9,1.08464575]
[1770123553010,13.84252133,2305.6,2304.9,1.08464575]
[1770123553211,12.75820327,2305.6,2304.9,1.71786863]
[1770123555522,13.84255472,2305.6,2304.9,1.71786501]
[1770123555711,12.75820327,2305.6,2304.9,1.71786501]
[1770123557429,12.75820327,2305.6,2305.1,0.001]
[1770123557727,0.0011,2305.5,2305.1,0.001]
[1770123563130,11.8410704,2305.5,2305.1,0.001]
[1770123564730,12.92543703,2305.5,2305.1,0.001]
[1770123565551,12.93862645,2305.5,2305.1,0.001]
[1770123566256,11.8399704,2305.3,2305.1,0.001]
[1770123566561,11.8399704,2305.3,2304.9,0.001]
[1770123568136,12.9244335,2305.3,2304.9,0.001]
[1770123568644,11.8399704,2305.1,2304.5,1.08483402]
[1770123568848,11.8399704,2305.1,2304.6,0.54242998]
[1770123569532,11.8399704,2305.1,2304.4,1.08485792]
[1770123570327,12.92452535,2305.1,2304.4,1.08485792]
[1770123570557,12.92442175,2305.4,2304.5,11.62607041]
[1770123570763,12.92442175,2305.4,2305.1,0.001]
[1770123572047,12.93761117,2305.4,2305.1,0.001]
[1770123572244,12.92442175,2305.4,2305.1,0.001]
[1770123572442,12.93761117,2305.4,2305.1,0.001]
[1770123573162,1.08445135,2305.4,2305.1,0.001]
[1770123573660,12.92442175,2305.4,2305.1,0.001]
[1770123573864,12.93761117,2305.4,2305.1,0.001]
[1770123574062,11.8399704,2305.2,2304.9,0.001]
[1770123574250,11.85315982,2305.2,2304.5,1.08481396]
[1770123574436,11.8399704,2305.0,2304.5,1.82077965]
[1770123574637,11.8399704,2305.0,2304.4,1.08488109]
[1770123575071,11.8399704,2305.0,2304.3,1.08589635]
[1770123575842,11.8399704,2304.8,2304.3,0.001]
[1770123577239,12.92467175,2304.8,2304.3,0.001]
[1770123577642,11.8399704,2304.8,2304.3,0.001]
[1770123577858,12.92467127,2304.8,2304.3,0.001]
[1770123578889,12.93786069,2304.8,2304.3,0.001]
[1770123579094,11.8399704,2304.8,2304.3,0.001]
[1770123579252,12.9246634,2304.8,2304.3,0.001]
[1770123580570,11.8399704,2304.7,2304.3,0.001]
[1770123580946,11.8399704,2304.7,2304.0,0.001]
[1770123580947,11.8399704,2304.5,2304.0,0.001]
[1770123581876,11.8399704,2304.4,2304.0,0.001]
[1770123582049,11.8399704,2304.4,2303.8,0.0008]
[1770123582998,1.08492817,2304.3,2303.8,0.0008]
[1770123583286,12.92489857,2304.3,2303.8,0.0008]
[1770123583952,12.93808799,2304.3,2303.8,0.0008]
[1770123584155,11.8399704,2304.1,2303.8,0.0008]
[1770123584463,11.8399704,2304.1,2303.7,0.001]
[1770123584975,11.8399704,2303.9,2303.7,0.001]
[1770123585283,11.8399704,2303.9,2303.5,0.001]
[1770123586062,11.8399704,2303.8,2303.5,0.001]
[1770123587185,12.92514712,2303.8,2303.5,0.001]
[1770123590355,13.24708001,2304.0,2303.5,0.001]
[1770123590566,13.07199717,2303.9,2303.5,0.001]
[1770123591277,13.24716081,2303.8,2303.5,0.001]
[1770123591989,14.15712087,2303.9,2303.5,0.001]
[1770123594982,1.9951237,2303.9,2303.5,0.001]
[1770123595510,1.99511894,2303.9,2303.5,0.001]
[1770123596013,0.91,2303.9,2303.5,0.001]
[1770123596229,1.99513515,2303.9,2303.5,0.001]
[1770123597136,1.99511908,2303.9,2303.7,0.001]
[1770123597289,1.99511908,2303.9,2303.5,0.001]
[1770123597489,14.76496695,2303.9,2303.5,0.001]
[1770123597838,12.76984787,2303.8,2303.5,0.001]
[1770123598117,13.85503413,2303.8,2303.5,0.001]
[1770123600420,12.76984787,2303.5,2303.1,0.0018]
[1770123600615,13.67984787,2303.5,2303.1,0.0018]
[1770123601529,1.08518626,2303.8,2303.1,11.63167041]
[1770123601728,0.91,2303.6,2303.1,11.63167041]
[1770123602015,1.99518626,2303.8,2303.1,13.33771487]
[1770123602225,14.77822355,2303.8,2303.1,13.33771487]
[1770123602388,14.77822355,2303.8,2303.1,11.63167041]
[1770123602790,0.91,2303.8,2303.1,12.71715164]
[1770123603701,14.76498622,2303.9,2303.1,12.71715164]
[1770123604891,14.76498622,2303.9,2303.1,12.71716244]
[1770123606818,12.76984787,2303.7,2303.1,0.0018]
[1770123608421,12.76984787,2303.4,2302.9,0.001]
[1770123608626,13.8552942,2303.2,2302.3,12.70315065]
[1770123608825,12.76984787,2303.0,2302.3,0.0008]
[1770123609022,0.01318942,2302.9,2302.3,0.0008]
[1770123609323,12.78303729,2302.9,2302.3,0.0008]
[1770123609511,12.76984787,2303.1,2302.3,1.08666715]
[1770123610425,0.91,2303.0,2302.3,1.08666715]
[1770123610595,0.91,2303.0,2302.3,0.0008]
[1770123610798,0.91,2303.0,2302.3,11.61731209]
[1770123611004,0.91,2303.0,2302.3,13.32209161]
[1770123611208,13.85535986,2303.1,2302.3,1.70557952]
[1770123612127,0.01318942,2303.3,2302.3,13.32209161]
[1770123612431,1.08527944,2303.6,2302.6,11.61651209]
[1770123612726,1.08527944,2303.6,2302.7,12.70219411]
[1770123612925,1.08527944,2303.6,2302.8,1.70449222]
[1770123615426,1.08527944,2303.6,2302.8,2.79010693]
[1770123615427,13.85512731,2303.6,2302.8,2.79010693]
[1770123615923,1.08632032,2303.7,2302.8,14.40661902]
[1770123616138,0.0011,2303.7,2302.8,14.40661902]
[1770123616431,0.0011,2303.7,2303.0,11.61651209]
[1770123617503,0.0011,2303.7,2303.2,11.61651209]
[1770123617701,12.76984787,2304.3,2303.2,11.61431209]
[1770123617702,1.08495764,2304.3,2303.2,11.61431209]
[1770123617902,12.76984787,2304.2,2303.1,3.15188732]
[1770123618102,12.76984787,2304.2,2303.1,14.76619941]
[1770123618310,12.76984787,2304.2,2303.2,13.52512942]
[1770123620030,1.08502235,2304.1,2303.3,1.0853992]
[1770123620355,12.1562099,2304.0,2303.2,1.08542072]
[1770123620554,12.1562099,2303.8,2303.2,1.08544246]
[1770123621137,12.16939932,2303.9,2303.0,4.34216034]
[1770123621337,12.1562099,2303.7,2303.0,1.08550365]
[1770123621546,12.1562099,2303.7,2303.1,1.08548442]
[1770123621718,12.1562099,2303.7,2303.3,0.001]
[1770123621917,12.1573099,2303.7,2303.3,0.001]
[1770123622453,0.0011,2303.7,2303.3,0.001]
[1770123623024,1.08632001,2303.7,2303.3,0.001]
[1770123623224,13.24252991,2303.7,2303.3,0.001]
[1770123623548,12.1562099,2303.6,2303.3,0.001]
[1770123623732,1.08632001,2303.7,2303.3,0.001]
[1770123624133,12.1573099,2303.7,2303.3,0.001]
[1770123624330,12.17049932,2303.7,2303.3,0.001]
[1770123625048,0.0011,2303.7,2303.3,0.001]
[1770123628950,0.0011,2303.7,2303.3,11.61531209]
[1770123629130,0.0011,2303.9,2303.3,11.61531209]
[1770123630032,1.99496534,2304.3,2303.4,11.61211209]
[1770123630855,1.99496534,2304.3,2303.5,1.08530497]
[1770123632856,13.24104513,2304.5,2303.7,1.08521074]
[1770123633063,13.24104513,2304.5,2303.8,1.70381658]
[1770123633266,12.1562099,2304.3,2303.6,1.08524736]
[1770123633871,12.1562099,2304.3,2303.4,1.08533002]
[1770123634074,12.16939932,2304.1,2303.5,1.08530355]
[1770123634269,0.01318942,2304.4,2303.5,1.08530355]
[1770123634270,12.1562099,2304.3,2303.5,1.08530355]
[1770123634571,12.1562099,2304.3,2303.6,1.08524964]
[1770123634770,12.1562099,2304.3,2303.5,1.08526875]
[1770123634975,0.0011,2304.1,2303.5,1.08526875]
[1770123636592,0.0011,2304.1,2303.5,12.69738084]
[1770123640259,0.0011,2304.3,2303.6,11.61101209]
[1770123642159,0.0011,2304.3,2303.7,1.08521074]
[1770123643058,12.1573099,2304.3,2303.6,1.08522774]
[1770123643467,0.0011,2304.3,2303.6,1.08522774]
[1770123643695,0.0011,2304.3,2303.6,12.69623983]
[1770123643905,0.0011,2304.3,2303.7,1.70373681]
[1770123644112,0.0011,2304.3,2303.6,12.69623983]
[1770123647693,0.0011,2304.3,2303.7,0.001]
[1770123647898,0.0011,2304.1,2303.7,0.001]
[1770123648474,0.0011,2304.1,2303.7,11.61201209]
[1770123649388,0.0011,2304.1,2303.8,1.08516364]
[1770123649569,0.0011,2304.1,2303.8,2.78894667]
[1770123652407,12.82545892,2304.1,2303.7,0.001]
[1770123653806,13.91051885,2304.1,2303.7,0.001]
[1770123654188,13.91051885,2304.1,2303.5,0.001]
[1770123659179,13.92370827,2304.1,2303.5,0.001]
[1770123659607,13.91051885,2304.1,2303.5,0.001]
[1770123660511,0.0011,2304.1,2303.5,11.61301209]
[1770123661206,1.08612689,2304.1,2303.5,11.61301209]
[1770123661522,0.0011,2303.9,2303.7,0.001]
[1770123661696,12.63542278,2303.9,2303.7,0.001]
[1770123662094,0.01318942,2303.8,2303.1,0.001]
[1770123662307,1.08525785,2303.6,2303.1,0.001]
[1770123662523,1.08525785,2303.6,2302.5,0.001]
[1770123662524,12.6475122,2303.5,2302.5,0.001]
[1770123662724,12.63432278,2303.3,2302.5,0.001]
[1770123662923,12.63432278,2303.3,2302.5,1.08675911]
[1770123663703,12.63432278,2303.3,2302.5,0.001]
[1770123663899,12.63432278,2303.1,2302.5,0.001]
[1770123664413,13.71984136,2303.1,2302.5,0.001]
[1770123666630,13.73303078,2303.1,2302.3,0.0008]
[1770123666806,12.63432278,2302.9,2302.3,0.0008]
[1770123667211,12.6475122,2302.9,2302.3,0.0008]
[1770123667914,12.63432278,2302.6,2302.1,0.001]
[1770123668124,12.63432278,2302.6,2301.8,1.08608697]
[1770123668505,12.63432278,2302.4,2301.7,4.34458953]
[1770123669906,12.63432278,2302.6,2301.8,11.61981209]
[1770123670210,14.63000594,2302.7,2301.9,1.59644016]
[1770123670514,4.34237841,2302.9,2301.9,12.70587143]
[1770123670515,13.71991294,2302.9,2301.9,12.70587143]
[1770123670722,13.71991294,2302.9,2301.9,1.08605934]
[1770123671419,12.63432278,2302.9,2301.9,12.70587143]
[1770123671616,13.71991461,2302.9,2301.9,12.70587143]
[1770123671820,13.71991461,2302.9,2302.0,1.70501088]
[1770123672030,13.71991461,2302.9,2301.9,1.08605934]
[1770123672334,13.73310403,2302.9,2301.9,1.08605934]
[1770123672831,13.73310403,2302.9,2301.8,4.34423736]
[1770123674420,12.63432278,2302.7,2301.8,4.34423736]
[1770123674612,12.63432278,2302.7,2302.0,0.001]
[1770123674813,12.63432278,2302.6,2302.0,0.001]
[1770123677237,13.72005497,2302.6,2302.0,0.001]
[1770123677642,13.72005497,2302.6,2301.8,0.001]
[1770123677944,12.63432278,2302.4,2301.8,0.001]
[1770123678159,0.01318942,2302.5,2301.8,0.001]
[1770123678160,12.63432278,2302.3,2301.8,0.001]
[1770123678946,12.63432278,2302.1,2301.6,0.0008]
[1770123679155,12.63432278,2301.9,2301.1,1.08643692]
[1770123679439,12.63432278,2302.1,2301.1,14.84792345]
[1770123680153,12.63432278,2302.1,2301.1,3.22631136]
[1770123680745,1.08601216,2302.0,2301.1,3.22631136]
[1770123681055,0.01318942,2301.9,2301.1,1.08642887]
[1770123681350,11.79653676,2301.8,2301.0,1.0864623]
[1770123681513,11.79653676,2301.8,2300.9,4.34605348]
[1770123681514,11.79653676,2301.8,2300.9,1.08652641]
[1770123681839,0.01318942,2301.9,2300.8,1.08755642]
[1770123681840,11.79653676,2301.6,2300.8,1.08755642]
[1770123682038,11.79653676,2301.6,2300.9,1.0865216]
[1770123682239,11.79653676,2301.6,2300.8,1.08755583]
[1770123682415,11.79653676,2301.6,2300.8,0.001]
[1770123682614,11.80972618,2301.7,2300.8,1.08757616]
[1770123682814,11.79653676,2301.5,2300.8,0.001]
[1770123685048,11.79653676,2301.3,2300.8,0.001]
[1770123685863,1.08619185,2301.7,2300.8,11.62261209]
[1770123686064,12.88266491,2301.8,2300.8,12.7848733]
[1770123686632,11.79653676,2301.8,2300.8,12.7848733]
[1770123687037,12.88264859,2301.8,2301.0,0.001]
[1770123687436,11.79653676,2301.8,2301.0,0.001]
[1770123687647,0.0011,2301.9,2301.0,12.28230389]
[1770123688336,1.08716313,2301.9,2301.0,12.28230389]
[1770123688540,11.79763676,2301.9,2301.0,12.28230389]
[1770123688940,0.0011,2301.9,2301.0,12.28230389]
[1770123689144,0.0011,2301.9,2301.1,12.70804901]
[1770123689354,0.0011,2301.9,2301.1,14.91407263]
[1770123691068,11.79763676,2301.9,2301.1,14.91407263]
[1770123693064,0.0011,2301.9,2301.1,14.91407263]
[1770123693269,0.0011,2301.9,2301.2,11.62161209]
[1770123693442,0.0011,2301.9,2301.3,1.0863425]
[1770123695465,0.0011,2301.9,2301.1,2.20602362]
[1770123695466,11.79763676,2301.9,2301.1,2.20602362]
[1770123695667,11.79763676,2301.9,2301.0,12.28230389]
[1770123695668,11.79763676,2301.9,2301.0,0.001]
[1770123695847,11.79653676,2301.7,2301.0,1.0874638]
[1770123696045,11.79653676,2301.7,2301.2,1.08637595]
[1770123696545,11.79653676,2301.7,2301.1,1.08639934]
[1770123696870,11.79653676,2301.7,2301.0,1.08744978]
[1770123697038,11.79653676,2301.5,2301.0,1.08744978]
[1770123697451,11.79653676,2301.5,2301.0,0.001]
[1770123698973,12.88280042,2301.5,2301.0,0.001]
[1770123699176,11.79653676,2301.5,2301.0,0.001]
[1770123699349,11.79653676,2301.5,2301.2,0.001]
[1770123700652,11.79763676,2301.9,2301.2,0.001]
[1770123700854,12.88369882,2301.9,2301.2,0.001]
[1770123701470,0.0011,2301.9,2301.2,11.62261209]
[1770123702174,0.0011,2301.9,2301.3,1.0863425]
[1770123702563,11.79763676,2301.9,2301.3,1.0863425]
[1770123702781,11.79763676,2301.9,2301.2,0.001]
[1770123703277,11.79763676,2301.9,2301.2,1.08738036]
[1770123703478,11.79763676,2301.9,2301.2,0.001]
[1770123704579,11.79653676,2301.7,2301.2,0.001]
[1770123706364,12.88270398,2301.7,2301.2,0.001]
[1770123706561,11.79653676,2301.6,2301.2,0.001]
[1770123708183,4.34540609,2301.9,2301.2,11.62261209]
[1770123708184,0.0011,2301.9,2301.2,11.62261209]
[1770123708692,0.0011,2301.9,2301.3,1.0863425]
[1770123709895,11.79763676,2301.9,2301.3,1.0863425]
[1770123710189,0.0011,2301.9,2301.3,1.0863425]
[1770123710354,0.0011,2301.9,2301.3,3.22631196]
[1770123710765,0.0011,2301.9,2301.0,0.001]
[1770123710766,12.77788624,2301.4,2301.0,0.001]
[1770123711293,1.18383942,2301.7,2301.0,0.001]
[1770123711294,13.94853624,2301.7,2301.0,0.001]
[1770123711593,13.94853624,2301.7,2301.0,1.08746948]
[1770123711795,13.94853624,2301.7,2301.0,0.001]
[1770123711971,12.77788624,2301.7,2301.2,0.001]
[1770123712296,12.77898624,2301.7,2301.2,0.001]
[1770123712982,1.08725878,2301.7,2301.2,0.001]
[1770123713564,0.0011,2301.7,2301.2,0.001]
[1770123713777,1.08726425,2301.7,2301.2,0.001]
[1770123714295,13.31627045,2301.7,2301.2,0.001]
[1770123714595,12.2290062,2301.6,2301.2,0.001]
[1770123714768,0.0011,2301.7,2301.2,0.001]
[1770123719598,12.2301062,2301.7,2301.2,0.001]
[1770123720599,0.0011,2301.7,2301.2,0.001]
[1770123720782,0.0011,2301.7,2301.2,11.62261209]
[1770123720984,0.0011,2301.7,2301.3,1.16226121]
[1770123721586,0.0011,2301.7,2301.2,1.08736625]
[1770123721932,12.2301062,2301.7,2301.2,0.001]
[1770123722105,12.2301062,2301.7,2301.0,0.001]
[1770123722584,13.4007562,2301.7,2301.0,0.001]
[1770123722776,12.2290062,2301.5,2301.0,0.001]
[1770123722978,12.2290062,2301.4,2301.0,0.001]
[1770123723398,13.31532976,2301.4,2301.0,0.001]
[1770123726017,14.48597976,2301.4,2300.8,0.001]
[1770123726315,13.31532976,2301.4,2300.8,0.001]
[1770123726510,12.2290062,2301.3,2300.8,0.001]
[1770123726715,12.2290062,2301.3,2301.1,0.001]
[1770123726897,12.2290062,2301.3,2300.8,0.001]
[1770123727211,13.3996562,2301.3,2300.8,0.001]
[1770123727910,12.2290062,2301.1,2300.8,0.001]
[1770123730188,1.08648413,2301.0,2300.8,0.001]
[1770123732218,13.31549033,2301.0,2300.0,15.96230866]
[1770123732522,13.31549033,2301.0,2300.1,11.62361209]
[1770123732723,1.08648413,2301.0,2300.1,11.62361209]
[1770123733787,1.0863425,2301.3,2300.2,11.62361209]
[1770123733991,1.99833099,2301.6,2300.5,11.62361209]
[1770123734186,14.22733719,2301.6,2300.6,12.71028513]
[1770123734822,13.31633719,2301.6,2300.6,12.71028513]
[1770123735000,12.2290062,2301.5,2300.7,1.70569773]
[1770123735197,13.15319562,2301.5,2300.5,1.08668178]
[1770123735408,13.1400062,2301.5,2300.5,12.71029387]
[1770123735725,12.2290062,2301.2,2300.5,1.08671731]
[1770123736313,13.31541204,2301.2,2300.4,4.34706692]
[1770123737020,13.31541204,2301.2,2300.4,15.97067901]
[1770123737231,1.08640584,2301.2,2300.5,1.88255407]
[1770123738286,1.08637705,2301.3,2300.5,11.62361209]
[1770123738488,1.08637705,2301.3,2300.6,1.08667304]
[1770123739320,1.08633008,2301.4,2300.6,12.71028513]
[1770123739528,1.99728145,2301.5,2300.6,12.71028513]
[1770123739817,14.23947707,2301.5,2300.5,1.08669128]
[1770123740022,14.23947707,2301.5,2300.6,1.70572675]
[1770123740225,12.2290062,2301.2,2300.6,0.001]
[1770123740437,13.43998169,2301.1,2300.6,0.001]
[1770123742506,12.35354477,2300.9,2300.6,0.001]
[1770123743028,0.911,2301.0,2300.6,0.001]
[1770123744441,13.26454477,2301.0,2300.6,0.001]
[1770123744636,1.08654972,2300.9,2300.2,1.08686201]
[1770123745203,13.45328391,2300.9,2300.1,1.08687178]
[1770123745405,12.36673419,2300.8,2300.0,1.08692343]
[1770123746120,12.36673419,2300.8,2300.1,1.08690538]
[1770123746452,1.08654972,2300.9,2300.1,12.71051747]
[1770123746656,1.08654972,2300.9,2300.1,14.41635167]
[1770123747028,14.35106252,2301.0,2300.1,14.41635167]
[1770123747817,14.34888941,2301.0,2300.1,14.41635167]
[1770123750021,14.34886874,2301.0,2300.1,14.41635167]
[1770123750222,1.99749708,2301.0,2300.1,14.41635167]
[1770123750425,1.99749708,2301.0,2300.2,13.50220282]
[1770123750654,16.69929959,2301.1,2300.3,1.08681476]
[1770123750862,12.35354477,2301.0,2300.3,1.08681476]
[1770123751354,12.35354477,2301.0,2300.2,2.96325278]
[1770123751654,12.35354477,2301.0,2300.2,14.58903798]
[1770123752063,1.08643692,2301.1,2300.3,11.6257852]
[1770123752955,1.08643692,2301.1,2300.3,12.71257708]
[1770123753254,13.43998169,2301.1,2300.3,12.71257708]
[1770123754753,13.43998169,2301.1,2300.4,0.001]
[1770123755056,0.0011,2300.9,2300.4,0.001]
[1770123755223,0.0011,2300.9,2300.4,0.73216443]
[1770123757344,0.0011,2300.9,2300.4,1.8189128]
[1770123759029,0.0011,2300.9,2300.4,0.73216443]
[1770123759642,0.0011,2300.9,2300.4,1.81892856]
[1770123759940,0.0011,2300.9,2300.4,0.73216443]
[1770123760140,0.0011,2300.9,2300.4,1.81892132]
[1770123761247,0.0011,2300.9,2300.5,0.61661723]
[1770123761829,0.0011,2301.1,2300.5,13.32910316]
[1770123765168,0.0011,2301.1,2300.5,1.70331796]
[1770123765340,12.35464477,2301.1,2300.5,1.08670073]
[1770123766157,0.0011,2301.1,2300.5,11.6257852]
[1770123767554,0.0011,2301.2,2300.5,11.6246852]
[1770123768341,0.0011,2301.2,2300.6,12.71235824]
[1770123768569,0.0011,2301.2,2300.7,1.70590504]
[1770123768769,0.0011,2300.9,2300.7,1.70590504]
[1770123769262,0.0011,2300.9,2300.6,1.08767304]
[1770123770975,0.0011,2300.9,2300.6,0.001]
[1770123771283,0.0011,2300.9,2300.6,11.6256852]
[1770123771780,0.0011,2301.4,2300.7,12.5345852]
[1770123771968,0.0011,2301.7,2300.8,11.6224852]
[1770123772281,0.0011,2301.7,2301.0,11.6224852]
[1770123772961,0.0011,2301.7,2301.1,1.08643692]
[1770123773178,0.0011,2301.8,2301.2,12.5334852]
[1770123773484,0.0011,2302.1,2301.3,11.6202852]
[1770123773683,0.0011,2302.1,2301.3,12.78562285]
[1770123773876,12.91432992,2302.5,2301.5,11.6191852]
[1770123774074,12.91432992,2302.3,2301.4,2.12866182]
[1770123774380,12.91432992,2302.3,2301.2,2.44197707]
[1770123774381,12.92751934,2302.0,2301.2,0.911]
[1770123774585,12.92751934,2301.7,2300.9,1.08651229]
[1770123774784,12.92751934,2301.7,2300.9,1.08649673]
[1770123774977,12.92751934,2301.7,2301.0,1.6297601]
[1770123774978,14.00053082,2301.6,2301.0,1.6297601]
[1770123775284,14.00053082,2301.6,2301.0,1.62975655]
[1770123775483,14.00053082,2301.6,2301.0,1.08648308]
[1770123775484,12.91432992,2301.6,2301.0,1.08648308]
[1770123775682,12.91432992,2301.8,2301.0,1.08648308]
[1770123777290,14.00045586,2301.8,2300.8,4.34593654]
[1770123777491,14.00045586,2301.8,2300.9,1.79627003]
[1770123777688,12.91432992,2301.8,2300.9,1.79627003]
[1770123777891,12.91432992,2302.0,2301.0,11.6191852]
[1770123779373,12.91432992,2302.0,2301.1,1.08643692]
[1770123779773,12.91432992,2302.0,2301.1,12.70562212]
[1770123779972,12.91432992,2302.0,2301.2,1.70513698]
[1770123780190,12.91432992,2301.7,2301.2,1.70513698]
[1770123780487,12.91432992,2301.7,2301.1,1.08643692]
[1770123780987,12.91432992,2302.0,2301.1,1.08643692]
[1770123781188,14.00034953,2302.0,2301.1,1.08643692]
[1770123781497,14.00034953,2302.0,2301.0,4.34574768]
[1770123781695,12.91432992,2301.7,2301.0,4.34574768]
[1770123781901,12.91432992,2301.7,2301.0,1.80933431]
[1770123782101,12.91432992,2301.7,2300.9,1.08652202]
[1770123782270,12.91432992,2301.5,2300.8,0.001]
[1770123782472,12.91432992,2301.5,2300.9,1.08652232]
[1770123782983,13.82642992,2301.8,2300.9,1.08652232]
[1770123783195,13.82642992,2301.8,2301.0,0.54338331]
[1770123783491,12.91432992,2301.6,2301.0,1.62982591]
[1770123786997,13.82642992,2301.8,2301.0,1.62982591]
[1770123787494,14.91253911,2301.8,2301.0,1.62982591]
[1770123789277,14.91253824,2301.8,2301.0,1.62982591]
[1770123789478,14.91253824,2301.8,2301.1,0.59758693]
[1770123790704,14.91253824,2301.8,2301.2,1.0863897]
[1770123791209,12.91542992,2301.8,2301.2,1.0863897]
[1770123791421,0.0011,2301.8,2301.2,1.0863897]
[1770123791913,12.91542992,2302.0,2301.2,12.7055749]
[1770123791914,0.0011,2302.0,2301.2,12.7055749]
[1770123792129,0.0011,2302.0,2301.3,13.38407199]
[1770123792482,0.0011,2302.0,2301.3,1.76488679]
[1770123792981,0.0011,2302.0,2301.4,12.70548049]
[1770123795010,0.0011,2301.9,2301.4,12.70548049]
[1770123795708,12.91432992,2302.7,2301.7,11.6169852]
[1770123796008,0.0011,2302.8,2301.9,17.67600351]
[1770123796174,0.0011,2302.8,2302.0,12.5279852]
[1770123796780,12.91542992,2302.8,2302.0,0.911]
[1770123797012,12.91542992,2302.8,2302.1,1.08596498]
[1770123797911,0.0011,2302.8,2302.1,12.70295018]
[1770123799801,0.0011,2302.8,2302.2,6.05901831]
[1770123799982,12.91702992,2303.1,2302.2,17.67270351]
[1770123800299,12.91702992,2303.1,2302.2,6.05901831]
[1770123800496,0.0027,2303.1,2302.3,0.71449833]
[1770123800707,0.0027,2303.1,2302.3,12.32818353]
[1770123801287,0.0027,2303.1,2302.4,1.08582348]
[1770123801493,12.03504442,2303.1,2302.4,1.08582348]
[1770123802114,0.0027,2303.1,2302.4,1.08582348]
[1770123802316,0.0027,2303.1,2302.5,0.61436158]
[1770123802490,12.03504442,2303.1,2302.5,0.61436158]
[1770123804097,12.03504442,2303.1,2302.6,1.08572917]
[1770123804516,12.03504442,2303.1,2302.5,1.70010073]
[1770123804700,12.03504442,2303.1,2302.5,1.08573915]
[1770123806006,0.0027,2303.1,2302.5,1.08573915]
[1770123806318,12.03504442,2303.1,2302.4,4.34318995]
[1770123807519,12.03504442,2303.1,2302.5,0.001]
[1770123807814,12.03344442,2302.9,2302.5,0.001]
[1770123808425,0.0011,2302.9,2302.5,0.001]
[1770123813549,0.0011,2302.9,2302.5,1.70548026]
[1770123815342,12.03344442,2302.9,2302.5,2.79121382]
[1770123815641,12.03344442,2302.9,2302.5,1.08673356]
[1770123816062,0.0011,2302.9,2302.5,1.08673356]
[1770123817346,0.0011,2302.9,2302.5,0.001]
[1770123818363,0.0011,2302.9,2302.5,0.04443104]
[1770123818559,0.0011,2302.9,2302.5,1.75324544]
[1770123818753,12.03504442,2303.1,2302.5,13.36693064]
[1770123818754,0.0027,2303.1,2302.5,13.36693064]
[1770123818936,0.0027,2303.1,2302.5,13.3234996]
[1770123819367,0.0027,2303.1,2302.6,1.08572917]
[1770123819660,0.0011,2302.9,2302.6,1.08572917]
[1770123819869,0.0011,2302.9,2302.7,1.87521455]
[1770123820162,0.0011,2302.9,2302.6,1.08572917]
[1770123827669,12.03344442,2302.9,2302.5,0.911]
[1770123827861,12.03344442,2302.9,2302.5,1.99676739]
[1770123830075,12.03344442,2302.9,2302.5,1.08676739]
[1770123831476,12.03344442,2302.9,2302.5,0.001]
[1770123831680,0.0011,2302.9,2302.5,0.001]
[1770123831985,0.0011,2302.9,2302.7,0.001]
[1770123832190,0.0011,2302.8,2302.7,0.001]
[1770123837890,12.57568581,2302.7,2302.3,0.001]
[1770123838082,12.57568581,2302.7,2302.0,1.15405853]
[1770123838401,12.57568581,2302.7,2302.3,1.0858634]
[1770123838862,12.57568581,2302.7,2302.2,1.08588084]
[1770123839473,12.57568581,2302.7,2302.3,1.08586635]
[1770123840073,12.57568581,2302.7,2302.0,1.08601216]
[1770123840265,12.57568581,2302.7,2302.0,3.34040499]
[1770123840465,0.0011,2302.8,2302.1,12.5255852]
[1770123840799,0.0011,2303.0,2302.5,1.15405853]
[1770123842301,0.0011,2303.0,2302.6,1.08572917]
[1770123845490,0.0011,2303.0,2302.7,0.001]
[1770123845689,0.0011,2303.0,2302.7,0.54396459]
[1770123845900,0.0011,2302.8,2302.7,0.54396459]
[1770123846293,0.0011,2302.8,2302.7,1.62964661]
[1770123848291,12.57568581,2302.6,2301.8,2.32322584]
[1770123848492,12.57568581,2302.2,2301.5,1.12102405]
[1770123848695,0.93806509,2302.1,2301.5,1.12102136]
[1770123848891,0.93807472,2302.0,2301.5,1.12102136]
[1770123849205,0.93807472,2302.0,2301.5,0.001]
[1770123849206,12.57568581,2302.0,2301.5,0.001]
[1770123849380,12.57568581,2302.0,2301.5,1.08723577]
[1770123849578,18.62121347,2302.3,2301.5,1.08723577]
[1770123849775,0.93709015,2302.2,2301.5,1.08723577]
[1770123849998,0.93709015,2302.1,2301.5,1.08723577]
[1770123850512,13.66162809,2302.2,2301.5,0.001]
[1770123851298,12.57568581,2302.2,2301.5,0.001]
[1770123851610,12.57568581,2302.2,2301.5,2.32422584]
[1770123852506,12.57568581,2302.2,2301.6,1.0862009]
[1770123853510,13.66160742,2302.2,2301.5,2.32322584]
[1770123853819,13.66160742,2302.2,2301.3,0.001]
[1770123853820,12.57568581,2302.0,2301.3,1.08733593]
[1770123854013,12.57568581,2302.0,2301.5,1.08624396]
[1770123854217,12.57568581,2302.0,2301.4,1.08626194]